fUSD/lending_fUSD_20250221
["ID","MTS","AMOUNT","RATE_DAILY","PERIOD"]
[353975232,1740171060799,-1071.25,0.00011532,2]
[353975233,1740171060808,-663.69,0.00011532,2]
[353975234,1740171060818,-1377.64,0.00011532,2]
[353975235,1740171060828,-500.0,0.00011532,2]
[353975236,1740171060838,-500.0,0.00011532,2]
[353975237,1740171060847,-540.68,0.00011532,2]
[353975238,1740171060857,-500.0,0.00011532,2]
[353975239,1740171060867,-500.0,0.00011532,2]
[353975240,1740171060876,-500.0,0.00011533,2]
[353975241,1740171060885,-570.06,0.00011533,2]
[353975242,1740171060895,-547.69,0.00011533,2]
[353975243,1740171060905,-500.0,0.00011533,2]
[353975244,1740171060914,-530.17,0.00011533,2]
[353975245,1740171060924,-595.9,0.00011533,2]
[353975246,1740171060934,-500.0,0.00011533,2]
[353975247,1740171060943,-500.0,0.00011533,2]
[353975248,1740171060953,-500.0,0.00011533,2]
[353975249,1740171060963,-500.0,0.00011533,2]
[353975250,1740171060972,-500.0,0.00011533,2]
[353975251,1740171060982,-596.32,0.00011533,2]
[353975252,1740171060993,-500.0,0.00011533,2]
[353975253,1740171061003,-500.0,0.00011533,2]
[353975254,1740171061016,-500.0,0.00011533,2]
[353975255,1740171061025,-500.0,0.00011533,2]
[353975256,1740171061034,-725.21,0.00011533,2]
[353975257,1740171061044,-736.61,0.00011533,2]
[353975258,1740171061055,-500.0,0.00011533,2]
[353975259,1740171061064,-627.56,0.00011533,2]
[353975260,1740171061073,-500.0,0.00011533,2]
[353975261,1740171061083,-500.0,0.00011533,2]
[353975262,1740171061092,-500.0,0.00011533,2]
[353975263,1740171061102,-820.97,0.00011533,2]
[353975264,1740171061111,-500.0,0.00011533,2]
[353975265,1740171061120,-638.4,0.00011533,2]
[353975266,1740171061130,-602.07,0.00011533,2]
[353975267,1740171061139,-591.74,0.00011533,2]
[353975268,1740171061149,-500.0,0.00011533,2]
[353975269,1740171061159,-556.78,0.00011533,2]
[353975270,1740171061168,-543.99,0.00011533,2]
[353975271,1740171061178,-500.0,0.00011533,2]
[353975272,1740171061188,-561.34,0.00011533,2]
[353975273,1740171061198,-500.0,0.00011533,2]
[353975274,1740171061207,-500.0,0.00011533,2]
[353975275,1740171061217,-570.21,0.00011533,2]
[353975276,1740171061225,-737.42,0.00011533,2]
[353975277,1740171061235,-500.0,0.00011533,2]
[353975278,1740171061245,-500.0,0.00011533,2]
[353975279,1740171061254,-500.0,0.00011533,2]
[353975280,1740171061264,-500.0,0.00011533,2]
[353975281,1740171061274,-516.42,0.00011533,2]
[353975282,1740171061284,-500.0,0.00011533,2]
[353975283,1740171061293,-500.0,0.00011533,2]
[353975284,1740171061302,-500.0,0.00011533,2]
[353975285,1740171061312,-602.18,0.00011533,2]
[353975286,1740171061321,-500.0,0.00011533,2]
[353975287,1740171061332,-500.0,0.00011533,2]
[353975288,1740171061341,-828.44,0.00011533,2]
[353975289,1740171061351,-500.0,0.00011533,2]
[353975290,1740171061361,-999.93,0.00011533,2]
[353975291,1740171061371,-642.50604573,0.00011533,2]
[353975292,1740171061380,-1127.37077099,0.00011533,2]
[353975293,1740171061390,-500.0,0.00011533,2]
[353975294,1740171061399,-872.75,0.00011533,2]
[353975295,1740171061409,-664.18,0.00011533,2]
[353975296,1740171061418,-1061.9,0.00011533,2]
[353975297,1740171061427,-500.0,0.00011533,2]
[353975298,1740171061437,-1366.7,0.00011533,2]
[353975299,1740171061446,-1157.67,0.00011533,2]
[353975300,1740171061456,-913.3,0.00011533,2]
[353975301,1740171061465,-586.15,0.00011533,2]
[353975302,1740171061475,-500.0,0.00011533,2]
[353975303,1740171061486,-997.55,0.00011533,2]
[353975304,1740171061496,-693.28,0.00011533,2]
[353975305,1740171061506,-500.0,0.00011533,2]
[353975306,1740171061516,-500.0,0.00011533,2]
[353975307,1740171061526,-703.51,0.00011533,2]
[353975308,1740171061536,-217.67,0.00011533,2]
[353975309,1740171061546,-500.0,0.00011533,2]
[353975310,1740171061555,-500.0,0.00011533,2]
[353975311,1740171061565,-571.44,0.00011533,2]
[353975312,1740171061575,-500.0,0.00011533,2]
[353975313,1740171061586,-500.0,0.00011533,2]
[353975314,1740171061596,-500.0,0.00011533,2]
[353975315,1740171061606,-500.0,0.00011533,2]
[353975316,1740171061615,-500.0,0.00011533,2]
[353975317,1740171061625,-500.0,0.00011533,2]
[353975318,1740171061636,-500.0,0.00011534,2]
[353975319,1740171061645,-500.0,0.00011534,2]
[353975320,1740171061656,-948.42,0.00011534,2]
[353975321,1740171061666,-500.0,0.00011534,2]
[353975322,1740171061675,-500.0,0.00011534,2]
[353975323,1740171061685,-500.0,0.00011534,2]
[353975324,1740171061694,-548.39,0.00011534,2]
[353975325,1740171061704,-500.0,0.00011534,2]
[353975326,1740171061714,-500.0,0.00011534,2]
[353975327,1740171061723,-500.0,0.00011534,2]
[353975328,1740171061739,-500.0,0.00011534,2]
[353975329,1740171061750,-500.0,0.00011534,2]
[353975330,1740171061761,-500.0,0.00011534,2]
[353975331,1740171061771,-500.0,0.00011534,2]
[353975332,1740171061782,-500.0,0.00011534,2]
[353975333,1740171061793,-500.0,0.00011534,2]
[353975334,1740171061803,-500.0,0.00011534,2]
[353975335,1740171061812,-500.0,0.00011534,2]
[353975336,1740171061822,-500.0,0.00011534,2]
[353975337,1740171061831,-509.14,0.00011534,2]
[353975338,1740171061841,-500.0,0.00011534,2]
[353975339,1740171061851,-500.0,0.00011534,2]
[353975340,1740171061861,-532.03,0.00011534,2]
[353975341,1740171061870,-500.0,0.00011534,2]
[353975342,1740171061879,-500.0,0.00011534,2]
[353975343,1740171061889,-895.54,0.00011534,2]
[353975344,1740171061898,-500.0,0.00011534,2]
[353975345,1740171061908,-500.0,0.00011534,2]
[353975346,1740171061917,-723.86,0.00011534,2]
[353975347,1740171061927,-500.0,0.00011534,2]
[353975348,1740171061937,-500.0,0.00011534,2]
[353975349,1740171061947,-569.43,0.00011534,2]
[353975350,1740171061956,-721.9,0.00011534,2]
[353975351,1740171061966,-604.3,0.00011534,2]
[353975352,1740171061976,-500.0,0.00011534,2]
[353975353,1740171061986,-796.7,0.00011534,2]
[353975354,1740171061996,-500.0,0.00011534,2]
[353975355,1740171062008,-548.12,0.00011534,2]
[353975356,1740171062023,-682.11,0.00011534,2]
[353975357,1740171062032,-500.0,0.00011534,2]
[353975358,1740171062042,-500.0,0.00011534,2]
[353975359,1740171062052,-500.0,0.00011534,2]
[353975360,1740171062062,-253.11464776,0.00011534,2]
[353975361,1740171062071,-608.63,0.00011534,2]
[353975362,1740171062081,-500.0,0.00011534,2]
[353975363,1740171062092,-528.72,0.00011534,2]
[353975364,1740171062102,-270.05888937,0.00011534,2]
[353975365,1740171062113,-500.0,0.00011534,2]
[353975366,1740171062123,-500.0,0.00011534,2]
[353975367,1740171062132,-500.0,0.00011534,2]
[353975368,1740171062141,-608.08,0.00011534,2]
[353975369,1740171062150,-500.0,0.00011534,2]
[353975370,1740171062160,-500.0,0.00011534,2]
[353975371,1740171062169,-500.0,0.00011534,2]
[353975372,1740171062179,-500.0,0.00011534,2]
[353975373,1740171062189,-500.0,0.00011534,2]
[353975374,1740171062198,-500.0,0.00011534,2]
[353975375,1740171062208,-595.1,0.00011534,2]
[353975376,1740171062218,-500.0,0.00011534,2]
[353975377,1740171062228,-597.25,0.00011534,2]
[353975378,1740171062238,-500.0,0.00011534,2]
[353975379,1740171062247,-789.82,0.00011534,2]
[353975380,1740171062256,-500.0,0.00011534,2]
[353975381,1740171062266,-500.0,0.00011534,2]
[353975382,1740171062276,-500.0,0.00011534,2]
[353975383,1740171062285,-534.75,0.00011534,2]
[353975384,1740171062295,-594.45,0.00011534,2]
[353975385,1740171062304,-500.0,0.00011534,2]
[353975386,1740171062313,-500.0,0.00011534,2]
[353975387,1740171062323,-656.67,0.00011534,2]
[353975388,1740171062332,-500.0,0.00011534,2]
[353975389,1740171062342,-510.74,0.00011534,2]
[353975390,1740171062351,-500.0,0.00011534,2]
[353975391,1740171062361,-576.65,0.00011534,2]
[353975392,1740171062370,-717.99,0.00011534,2]
[353975393,1740171062380,-758.02,0.00011534,2]
[353975394,1740171062389,-500.0,0.00011534,2]
[353975395,1740171062398,-500.0,0.00011534,2]
[353975396,1740171062407,-500.0,0.00011534,2]
[353975397,1740171062417,-500.0,0.00011534,2]
[353975398,1740171062427,-628.36,0.00011534,2]
[353975399,1740171062436,-500.0,0.00011534,2]
[353975400,1740171062445,-500.0,0.00011534,2]
[353975401,1740171062455,-549.57,0.00011534,2]
[353975402,1740171062464,-594.93,0.00011534,2]
[353975403,1740171062474,-510.35,0.00011534,2]
[353975404,1740171062483,-212.50445622,0.00011534,2]
[353975405,1740171062494,-500.0,0.00011534,2]
[353975406,1740171062503,-529.44,0.00011534,2]
[353975407,1740171062513,-514.03,0.00011534,2]
[353975408,1740171062522,-925.13,0.00011534,2]
[353975409,1740171062532,-573.73883084,0.00011534,2]
[353975410,1740171062541,-643.85,0.00011534,2]
[353975411,1740171062551,-500.0,0.00011534,2]
[353975412,1740171062560,-728.91,0.00011534,2]
[353975413,1740171062570,-500.0,0.00011534,2]
[353975414,1740171062579,-500.0,0.00011534,2]
[353975415,1740171062588,-791.3,0.00011534,2]
[353975416,1740171062598,-632.04,0.00011534,2]
[353975417,1740171062815,-818.59,0.00011534,2]
[353975418,1740171062869,-500.0,0.00011534,2]
[353975419,1740171062879,-592.44,0.00011534,2]
[353975420,1740171062888,-500.0,0.00011534,2]
[353975421,1740171062898,-500.0,0.00011534,2]
[353975422,1740171062908,-838.19,0.00011534,2]
[353975423,1740171062918,-720.06,0.00011534,2]
[353975424,1740171062927,-931.04,0.00011534,2]
[353975425,1740171062936,-1272.71,0.00011534,2]
[353975426,1740171062946,-1775.0,0.00011543,2]
[353975427,1740171062956,-151.08004475,0.000116,2]
[353975428,1740171062965,-618.24257699,0.00011602,2]
[353975429,1740171062976,-501.93254454,0.00011604,2]
[353975430,1740171062986,-632.53,0.00011613,2]
[353975431,1740171062996,-838.98,0.00011613,2]
[353975432,1740171063006,-500.0,0.00011613,2]
[353975433,1740171063019,-500.0,0.00011613,2]
[353975434,1740171063028,-649.17,0.00011613,2]
[353975435,1740171063038,-609.92,0.00011613,2]
[353975436,1740171063047,-500.0,0.00011613,2]
[353975437,1740171063057,-734.31,0.00011613,2]
[353975438,1740171063067,-903.74,0.00011613,2]
[353975439,1740171063077,-500.0,0.00011613,2]
[353975440,1740171063086,-500.0,0.00011613,2]
[353975441,1740171063096,-774.49,0.00011613,2]
[353975442,1740171063106,-557.01,0.00011613,2]
[353975443,1740171063115,-601.4,0.00011613,2]
[353975444,1740171063125,-500.0,0.00011613,2]
[353975445,1740171063134,-584.44,0.00011613,2]
[353975446,1740171063144,-739.21,0.00011613,2]
[353975447,1740171063154,-1290.21,0.00011613,2]
[353975448,1740171063164,-500.0,0.00011613,2]
[353975449,1740171063174,-500.0,0.00011613,2]
[353975450,1740171063184,-911.81,0.00011613,2]
[353975451,1740171063194,-500.0,0.00011613,2]
[353975452,1740171063205,-500.0,0.00011613,2]
[353975453,1740171063215,-721.51,0.00011613,2]
[353975454,1740171063225,-500.0,0.00011613,2]
[353975455,1740171063235,-1006.19,0.00011613,2]
[353975456,1740171063245,-567.1,0.00011613,2]
[353975457,1740171063255,-1021.87,0.00011613,2]
[353975458,1740171063265,-641.22,0.00011613,2]
[353975459,1740171063275,-500.0,0.00011615,2]
[353975460,1740171063285,-500.0,0.00011615,2]
[353975461,1740171063295,-500.0,0.00011615,2]
[353975462,1740171063304,-515.4,0.00011615,2]
[353975463,1740171063314,-545.11,0.00011615,2]
[353975464,1740171063324,-500.0,0.00011615,2]
[353975465,1740171063333,-500.0,0.00011615,2]
[353975466,1740171063343,-500.0,0.00011615,2]
[353975467,1740171063353,-500.0,0.00011615,2]
[353975468,1740171063363,-500.0,0.00011615,2]
[353975469,1740171063372,-1213.59,0.00011615,2]
[353975470,1740171063382,-500.0,0.00011615,2]
[353975471,1740171063392,-1530.25,0.00011615,2]
[353975472,1740171063402,-1165.42,0.00011615,2]
[353975473,1740171063411,-500.0,0.00011615,2]
[353975474,1740171063422,-500.0,0.00011615,2]
[353975475,1740171063431,-1202.17,0.00011615,2]
[353975476,1740171063443,-980.68,0.00011615,2]
[353975477,1740171063453,-388.485905,0.00011615,2]
[353975478,1740171063463,-787.96,0.00011615,2]
[353975479,1740171063473,-715.35,0.00011615,2]
[353975480,1740171063482,-4732.39,0.00011615,2]
[353975481,1740171063493,-825.04,0.00011615,2]
[353975482,1740171063503,-500.0,0.00011615,2]
[353975483,1740171063514,-781.86,0.00011615,2]
[353975484,1740171063524,-456.75589,0.00011615,2]
[353975485,1740171063535,-500.0,0.00011615,2]
[353975486,1740171063544,-968.39,0.00011615,2]
[353975487,1740171063554,-500.0,0.00011615,2]
[353975488,1740171063564,-1024.15,0.00011615,2]
[353975489,1740171063574,-500.0,0.00011615,2]
[353975490,1740171063584,-983.5,0.00011615,2]
[353975491,1740171063594,-641.54,0.00011615,2]
[353975492,1740171063604,-521.8,0.00011615,2]
[353975493,1740171063614,-922.66,0.00011615,2]
[353975494,1740171063624,-1051.72,0.00011615,2]
[353975495,1740171063633,-500.0,0.00011615,2]
[353975496,1740171063643,-960.42,0.00011615,2]
[353975497,1740171063653,-909.2,0.00011615,2]
[353975498,1740171063663,-699.01,0.00011615,2]
[353975499,1740171063674,-1134.55,0.00011615,2]
[353975500,1740171063684,-2042.37,0.00011615,2]
[353975501,1740171063694,-157.488315,0.00011615,2]
[353975502,1740171063704,-500.0,0.00011615,2]
[353975503,1740171063714,-770.62,0.00011615,2]
[353975504,1740171063724,-833.6,0.00011615,2]
[353975505,1740171063735,-500.0,0.00011615,2]
[353975506,1740171063746,-691.53,0.00011615,2]
[353975507,1740171063756,-1037.34,0.00011615,2]
[353975508,1740171063766,-500.0,0.00011615,2]
[353975509,1740171063776,-500.0,0.00011615,2]
[353975510,1740171063785,-698.57,0.00011615,2]
[353975511,1740171063795,-1368.34,0.00011615,2]
[353975512,1740171063805,-500.0,0.00011615,2]
[353975513,1740171063814,-697.57,0.00011615,2]
[353975514,1740171063824,-500.0,0.00011615,2]
[353975515,1740171063835,-1063.71,0.00011615,2]
[353975516,1740171063844,-1210.76,0.00011615,2]
[353975517,1740171063854,-916.99,0.00011615,2]
[353975518,1740171063864,-737.32,0.00011615,2]
[353975519,1740171063874,-500.0,0.00011615,2]
[353975520,1740171063884,-1114.97,0.00011615,2]
[353975521,1740171063894,-500.0,0.00011615,2]
[353975522,1740171063903,-841.42,0.00011615,2]
[353975523,1740171063913,-500.0,0.00011615,2]
[353975524,1740171063923,-2085.19,0.00011615,2]
[353975525,1740171063933,-500.0,0.00011615,2]
[353975526,1740171063942,-1025.17,0.00011615,2]
[353975527,1740171063952,-500.0,0.00011615,2]
[353975528,1740171063962,-1253.06,0.00011615,2]
[353975529,1740171063971,-500.0,0.00011615,2]
[353975530,1740171063981,-725.46,0.00011615,2]
[353975531,1740171063992,-828.59,0.00011615,2]
[353975532,1740171064001,-1071.25,0.00011615,2]
[353975533,1740171064014,-663.69,0.00011615,2]
[353975534,1740171064024,-1377.64,0.00011615,2]
[353975535,1740171064033,-500.0,0.00011615,2]
[353975536,1740171064043,-500.0,0.00011615,2]
[353975537,1740171064053,-540.68,0.00011615,2]
[353975538,1740171064063,-500.0,0.00011615,2]
[353975539,1740171064072,-500.0,0.00011615,2]
[353975540,1740171064082,-500.0,0.00011616,2]
[353975541,1740171064092,-500.0,0.00011616,2]
[353975542,1740171064102,-948.42,0.00011616,2]
[353975543,1740171064111,-500.0,0.00011616,2]
[353975544,1740171064121,-500.0,0.00011616,2]
[353975545,1740171064130,-500.0,0.00011616,2]
[353975546,1740171064139,-548.39,0.00011616,2]
[353975547,1740171064148,-500.0,0.00011616,2]
[353975548,1740171064158,-500.0,0.00011616,2]
[353975549,1740171064167,-500.0,0.00011616,2]
[353975550,1740171064176,-500.0,0.00011616,2]
[353975551,1740171064185,-500.0,0.00011616,2]
[353975552,1740171064195,-500.0,0.00011616,2]
[353975553,1740171064205,-500.0,0.00011616,2]
[353975554,1740171064214,-500.0,0.00011616,2]
[353975555,1740171064223,-500.0,0.00011616,2]
[353975556,1740171064233,-500.0,0.00011616,2]
[353975557,1740171064244,-500.0,0.00011616,2]
[353975558,1740171064253,-500.0,0.00011616,2]
[353975559,1740171064262,-509.14,0.00011616,2]
[353975560,1740171064272,-500.0,0.00011616,2]
[353975561,1740171064281,-500.0,0.00011616,2]
[353975562,1740171064290,-532.03,0.00011616,2]
[353975563,1740171064299,-500.0,0.00011616,2]
[353975564,1740171064309,-500.0,0.00011616,2]
[353975565,1740171064319,-895.54,0.00011616,2]
[353975566,1740171064328,-500.0,0.00011616,2]
[353975567,1740171064337,-500.0,0.00011616,2]
[353975568,1740171064347,-723.86,0.00011616,2]
[353975569,1740171064356,-500.0,0.00011616,2]
[353975570,1740171064365,-500.0,0.00011616,2]
[353975571,1740171064374,-569.43,0.00011616,2]
[353975572,1740171064383,-721.9,0.00011616,2]
[353975573,1740171064393,-604.3,0.00011616,2]
[353975574,1740171064402,-500.0,0.00011616,2]
[353975575,1740171064411,-796.7,0.00011616,2]
[353975576,1740171064420,-500.0,0.00011616,2]
[353975577,1740171064430,-500.0,0.00011616,2]
[353975578,1740171064441,-570.06,0.00011616,2]
[353975579,1740171064451,-548.12,0.00011616,2]
[353975580,1740171064461,-547.69,0.00011616,2]
[353975581,1740171064471,-500.0,0.00011616,2]
[353975582,1740171064480,-682.11,0.00011616,2]
[353975583,1740171064492,-500.0,0.00011616,2]
[353975584,1740171064502,-530.17,0.00011616,2]
[353975585,1740171064511,-500.0,0.00011616,2]
[353975586,1740171064521,-595.9,0.00011616,2]
[353975587,1740171064530,-500.0,0.00011616,2]
[353975588,1740171064541,-200.53,0.00011616,2]
[353975589,1740171064551,-608.63,0.00011616,2]
[353975590,1740171064560,-500.0,0.00011616,2]
[353975591,1740171064570,-500.0,0.00011616,2]
[353975592,1740171064580,-500.0,0.00011616,2]
[353975593,1740171064590,-528.72,0.00011616,2]
[353975594,1740171064600,-500.0,0.00011616,2]
[353975595,1740171064611,-500.0,0.00011616,2]
[353975596,1740171064620,-500.0,0.00011616,2]
[353975597,1740171064631,-500.0,0.00011616,2]
[353975598,1740171064640,-500.0,0.00011616,2]
[353975599,1740171064650,-596.32,0.00011616,2]
[353975600,1740171064660,-500.0,0.00011616,2]
[353975601,1740171064670,-608.08,0.00011616,2]
[353975602,1740171064679,-500.0,0.00011616,2]
[353975603,1740171064688,-500.0,0.00011616,2]
[353975604,1740171064698,-500.0,0.00011616,2]
[353975605,1740171064707,-500.0,0.00011616,2]
[353975606,1740171064717,-725.21,0.00011616,2]
[353975607,1740171064726,-500.0,0.00011616,2]
[353975608,1740171064736,-736.61,0.00011616,2]
[353975609,1740171064748,-500.0,0.00011616,2]
[353975610,1740171064758,-500.0,0.00011616,2]
[353975611,1740171064767,-500.0,0.00011616,2]
[353975612,1740171064776,-500.0,0.00011616,2]
[353975613,1740171064786,-595.1,0.00011616,2]
[353975614,1740171064796,-500.0,0.00011616,2]
[353975615,1740171064805,-500.0,0.00011616,2]
[353975616,1740171064815,-597.25,0.00011616,2]
[353975617,1740171064825,-500.0,0.00011616,2]
[353975618,1740171064834,-500.0,0.00011616,2]
[353975619,1740171064843,-789.82,0.00011616,2]
[353975620,1740171064852,-500.0,0.00011616,2]
[353975621,1740171064862,-820.97,0.00011616,2]
[353975622,1740171064872,-500.0,0.00011616,2]
[353975623,1740171064881,-500.0,0.00011616,2]
[353975624,1740171064891,-638.4,0.00011616,2]
[353975625,1740171064900,-500.0,0.00011616,2]
[353975626,1740171064910,-500.0,0.00011616,2]
[353975627,1740171064919,-602.07,0.00011616,2]
[353975628,1740171064929,-534.75,0.00011616,2]
[353975629,1740171064938,-591.74,0.00011616,2]
[353975630,1740171064947,-479.60530549,0.00011616,2]
[353975631,1740171064956,-594.45,0.00011616,2]
[353975632,1740171064966,-556.78,0.00011616,2]
[353975633,1740171064975,-543.99,0.00011616,2]
[353975634,1740171064984,-500.0,0.00011616,2]
[353975635,1740171064995,-500.0,0.00011616,2]
[353975636,1740171065005,-500.0,0.00011616,2]
[353975637,1740171065018,-561.34,0.00011616,2]
[353975638,1740171065027,-656.67,0.00011616,2]
[353975639,1740171065036,-500.0,0.00011616,2]
[353975640,1740171065047,-258.14772392,0.00011616,2]
[353975641,1740171065056,-510.74,0.00011616,2]
[353975642,1740171065066,-500.0,0.00011616,2]
[353975643,1740171065075,-570.21,0.00011616,2]
[353975644,1740171065084,-500.0,0.00011616,2]
[353975645,1740171065094,-737.42,0.00011616,2]
[353975646,1740171065104,-500.0,0.00011616,2]
[353975647,1740171065114,-576.65,0.00011616,2]
[353975648,1740171065124,-500.0,0.00011616,2]
[353975649,1740171065133,-717.99,0.00011616,2]
[353975650,1740171065143,-500.0,0.00011616,2]
[353975651,1740171065153,-758.02,0.00011616,2]
[353975652,1740171065162,-500.0,0.00011616,2]
[353975653,1740171065172,-500.0,0.00011616,2]
[353975654,1740171065181,-500.0,0.00011616,2]
[353975655,1740171065191,-500.0,0.00011616,2]
[353975656,1740171065200,-516.42,0.00011616,2]
[353975657,1740171065210,-500.0,0.00011616,2]
[353975658,1740171065220,-500.0,0.00011616,2]
[353975659,1740171065279,-628.36,0.00011616,2]
[353975660,1740171065288,-500.0,0.00011616,2]
[353975661,1740171065298,-500.0,0.00011616,2]
[353975662,1740171065307,-500.0,0.00011616,2]
[353975663,1740171065316,-602.18,0.00011616,2]
[353975664,1740171065325,-500.0,0.00011616,2]
[353975665,1740171065334,-549.57,0.00011616,2]
[353975666,1740171065343,-594.93,0.00011616,2]
[353975667,1740171065352,-500.0,0.00011616,2]
[353975668,1740171065361,-510.35,0.00011616,2]
[353975669,1740171065370,-500.0,0.00011616,2]
[353975670,1740171065379,-828.44,0.00011616,2]
[353975671,1740171065388,-500.0,0.00011616,2]
[353975672,1740171065398,-500.0,0.00011616,2]
[353975673,1740171065408,-999.93,0.00011616,2]
[353975674,1740171065417,-529.44,0.00011616,2]
[353975675,1740171065426,-514.03,0.00011616,2]
[353975676,1740171065435,-500.0,0.00011616,2]
[353975677,1740171065446,-872.75,0.00011616,2]
[353975678,1740171065456,-925.13,0.00011616,2]
[353975679,1740171065465,-664.18,0.00011616,2]
[353975680,1740171065475,-1061.9,0.00011616,2]
[353975681,1740171065486,-500.0,0.00011616,2]
[353975682,1740171065496,-1366.7,0.00011616,2]
[353975683,1740171065506,-643.85,0.00011616,2]
[353975684,1740171065515,-1157.67,0.00011616,2]
[353975685,1740171065526,-500.0,0.00011616,2]
[353975686,1740171065538,-728.91,0.00011616,2]
[353975687,1740171065548,-913.3,0.00011616,2]
[353975688,1740171065558,-500.0,0.00011616,2]
[353975689,1740171065568,-586.15,0.00011616,2]
[353975690,1740171065578,-500.0,0.00011616,2]
[353975691,1740171065588,-997.55,0.00011616,2]
[353975692,1740171065597,-500.0,0.00011616,2]
[353975693,1740171065607,-791.3,0.00011616,2]
[353975694,1740171065617,-632.04,0.00011616,2]
[353975695,1740171065626,-693.28,0.00011616,2]
[353975696,1740171065635,-500.0,0.00011616,2]
[353975697,1740171065644,-500.0,0.00011616,2]
[353975698,1740171065653,-818.59,0.00011616,2]
[353975699,1740171065662,-500.0,0.00011616,2]
[353975700,1740171065671,-703.51,0.00011616,2]
[353975701,1740171065680,-592.44,0.00011616,2]
[353975702,1740171065689,-500.0,0.00011616,2]
[353975703,1740171065699,-500.0,0.00011616,2]
[353975704,1740171065708,-500.0,0.00011616,2]
[353975705,1740171065717,-571.44,0.00011616,2]
[353975706,1740171065727,-500.0,0.00011616,2]
[353975707,1740171065736,-500.0,0.00011616,2]
[353975708,1740171065746,-500.0,0.00011616,2]
[353975709,1740171065756,-838.19,0.00011616,2]
[353975710,1740171065765,-720.06,0.00011616,2]
[353975711,1740171065775,-500.0,0.00011616,2]
[353975712,1740171065783,-931.04,0.00011616,2]
[353975713,1740171065792,-500.0,0.00011616,2]
[353975714,1740171065802,-500.0,0.00011616,2]
[353975715,1740171065811,-500.0,0.00011616,2]
[353975716,1740171065821,-1272.71,0.00011616,2]
[353975717,1740171065830,-160.59823248,0.00011619,2]
[353975718,1740171065839,-500.0,0.00011619,2]
[353975719,1740171065848,-158.46714712,0.00011619,2]
[353975720,1740171065857,-326.31478714,0.00011619,2]
[353975721,1740171065866,-576.7436931,0.00011674,2]
[353975722,1740171065875,-1000.0,0.00011686,2]
[353975723,1740171065884,-632.53,0.00011696,2]
[353975724,1740171065893,-838.98,0.00011696,2]
[353975725,1740171065903,-500.0,0.00011696,2]
[353975726,1740171065912,-500.0,0.00011696,2]
[353975727,1740171065921,-649.17,0.00011696,2]
[353975728,1740171065930,-609.92,0.00011696,2]
[353975729,1740171065939,-500.0,0.00011696,2]
[353975730,1740171065948,-734.31,0.00011696,2]
[353975731,1740171065957,-903.74,0.00011696,2]